Cogmind - Beta 13 @@@ ROGUE MODE // 2024.05.12 @ 19:16:06 Player: Toa of Guts Result: Self-destructed Performance ------------- Evolutions (4) 2000 Regions Visited (5) 1000 Robots Destroyed (160) 800 Value Destroyed (5822) 5822 Prototype IDs (17) 340 Alien Tech Used (0) 0 Bonus (845) 845 TOTAL SCORE: 10807 Bonus ------- High Alert Combat Kills 881 Follower Combat Kills 37 Friendly Fire -73 Cogmind --------- Core Integrity 52/850 Matter 164/300 Energy 160/160 System Corruption 13% Temperature Cool (0) Movement Walking (185) Ox1 Location -6/Factory Parts ------- > --- POWER (2) -------- Light Fission Core > --- PROPULSION (4) --- Flexi-carbon Leg Improved VSS Leg (fused) > --- UTILITY (6) ------ Large Storage Unit Advanced Visual Processing Unit Improved Targeting Computer EM Disruption Field > --- WEAPON (3) ------- Coil Gun Hypervelocity Gauss Rifle Hypervelocity Gauss Rifle > --- INVENTORY (15) --- Cargo Storage Unit Structural Scanner Machine Analyzer Lightning Gun Plasma Rifle Plasma Rifle Heavy Assault Rifle Peak State ------------ > --- POWER ------------ Micro Nuclear Core Fusion Compressor > --- PROPULSION ------- Light Armored Exoskeleton Light Armored Exoskeleton > --- UTILITY ---------- Large Storage Unit Advanced Visual Processing Unit Improved Targeting Computer Phase Shifter Layered Light Armor Plating Layered Light Armor Plating > --- WEAPON ----------- Gauss Rifle Gauss Rifle Flak Gun > --- INVENTORY -------- Armored Huge Wheel Cargo Storage Unit Structural Scanner Machine Analyzer Layered Light Armor Plating Heavy Assault Rifle Ripper [Rating: 58] Favorites ----------- Power Ion Engine Engine Ion Engine Power Core Micro Nuclear Core Propulsion Light Treads Treads Light Treads Leg Light Armored Exoskeleton Wheel Compact Wheel Utility Large Storage Unit Device Improved Heat Sink Storage Large Storage Unit Processor Advanced Visual Processing Unit Protection Scrap Shield Weapon Battle Cannon Energy Gun Medium Laser Energy Cannon Subdweller Beam Cannon Ballistic Gun Minigun Ballistic Cannon Battle Cannon Launcher Improved Grenade Launcher Slashing Weapon Ripper Build | -11 -10 -10 -8 -7 -6 ------- Run | Yrd Mat Sub Mat Fac Fac Slots Evolved 8 | . . . 4 2 2 Power 1 | . . . . . 1 Propulsion 2 | . . . 1 1 . Utility 4 | . . . 2 1 1 Weapon 1 | . . . 1 . . Parts Attached 167 | 6 10 28 39 36 48 Power 20 | 1 1 2 3 3 10 Engine 13 | 1 1 2 3 2 4 Core 7 | . . . . 1 6 Reactor . | . . . . . . Propulsion 31 | 2 3 4 14 3 5 Treads 19 | 2 1 4 12 . . Leg 9 | . . . 2 3 4 Wheel 3 | . 2 . . . 1 Hover . | . . . . . . Flight . | . . . . . . Utility 42 | 1 4 4 10 11 12 Device 17 | . . . 7 4 6 Storage 6 | 1 2 . 2 1 . Processor 3 | . . . . 1 2 Hackware . | . . . . . . Protection 16 | . 2 4 1 5 4 Artifact . | . . . . . . Weapon 74 | 2 2 18 12 19 21 Energy Gun 8 | 2 1 1 . . 4 Energy Cannon 7 | . . 2 3 2 . Ballistic Gun 18 | . 1 1 . 3 13 Ballistic Cannon 15 | . . 7 5 3 . Launcher 11 | . . 3 . 5 3 Special Weapon . | . . . . . . Impact Weapon . | . . . . . . Slashing Weapon 15 | . . 4 4 6 1 Piercing Weapon . | . . . . . . Special Melee Weapon . | . . . . . . Unidentified Prototypes 2 | . . . 1 . 1 Parts Lost 49 | . 1 7 5 5 31 Power 9 | . . . 1 1 7 Propulsion 7 | . . 1 1 . 5 Utility 14 | . . 3 1 2 8 Weapon 19 | . 1 3 2 2 11 Highest Loss Streak 16 | . 1 4 3 2 16 To Critical Strikes . | . . . . . . Average Slot Usage (%) 86 | . 97 87 94 77 70 Engine 10 | . 14 14 8 6 4 Treads 16 | . 10 25 21 . . Leg 4 | . . . 3 14 12 Wheel 2 | . 17 2 . . . Device 8 | . . . 18 16 11 Storage 6 | . 14 2 8 7 6 Processor 1 | . . . . 3 10 Protection 9 | . 11 13 7 7 5 Energy Gun 3 | . 21 2 . . 3 Energy Cannon 9 | . . 9 14 6 2 Ballistic Gun 2 | . 6 1 . 2 5 Ballistic Cannon 7 | . . 11 8 2 1 Slashing Weapon 2 | . . 2 2 4 2 Naked Turns . | . . . . . . Heaviest Build 65 | 12 51 55 47 65 58 Greatest Support 63 | 40 40 40 63 60 60 Greatest Overweight (x) 9 | . 1 3 1 1 9 Average Overweight (x) . | . . . . . . Largest Inventory Capacity 20 | 8 20 20 15 15 15 Average Capacity 11 | 6 15 8 13 15 15 Most Carried 20 | 6 18 20 15 15 14 Average Carried 10 | 4 12 7 12 13 9 Final Capacity 20 | 8 20 5 15 15 15 Final Carried 18 | 6 18 5 14 13 8 Class Distribution -------------------- 68% | Mutant 15% | Scavenger-Tank 7% | Scavenger-Mutant 5% | Skirmisher Dominant Class ---------------- Mutant | -10/Materials Mutant | -10/Subcaves Scavenger-Tank | -8/Materials Mutant | -7/Factory Mutant | -6/Factory Resources | -11 -10 -10 -8 -7 -6 ----------- Run | Yrd Mat Sub Mat Fac Fac Matter Collected 4012 | 240 136 570 1210 982 874 Remotely . | . . . . . . Salvage Created 5063 | . 428 484 1773 1406 972 Parts 302 | . 29 41 84 91 57 Haulers Intercepted 8 | . 1 . 6 1 . Recyclers Shooed 6 | . . . 1 3 2 Parts Field Recycled . | . . . . . . Retrieved Matter . | . . . . . . Parts Self-Destructed 12 | . . 12 . . . Prevented . | . . . . . . Kills | -11 -10 -10 -8 -7 -6 ------- Run | Yrd Mat Sub Mat Fac Fac Combat Hostiles Destroyed 120 | . 8 20 36 37 19 Melee 3 | . . . . 1 2 Guns 32 | . 8 7 . 3 14 Cannons 52 | . . 8 33 11 . AOE 27 | . . 5 . 20 2 Classes Destroyed 17 | . 6 2 3 5 1 Worker 8 | . . . 1 6 1 Builder 12 | . . . . 12 . Tunneler 1 | . 1 . . . . Hauler 8 | . 1 . 6 1 . Recycler 4 | . 1 . . 3 . Mechanic 1 | . . . . . 1 Operator 1 | . . . . 1 . Watcher 9 | . 2 . 5 2 . Swarmer 16 | . 3 9 . 4 . Grunt 49 | . 5 . 25 14 5 Brawler 2 | . . . . 2 . Duelist 3 | . . . 2 . 1 Sentry 10 | . . 1 8 1 . Specialist 5 | . . . . 3 2 Hunter 12 | . . . 1 4 7 Programmer 13 | . . . . 9 4 Subdweller 10 | . . 10 . . . Best Kill Streak 16 | . 4 3 9 16 4 Combat Bots Only 9 | . 3 3 9 8 4 Max Kills in Single Turn 5 | . 2 2 1 5 1 Gunslinging . | . . . . . . Exploded 2 | . . 2 . 2 1 Melee 1 | . . . . 1 1 Uniques/NPCs Destroyed . | . . . . . . Combat | -11 -10 -10 -8 -7 -6 -------- Run | Yrd Mat Sub Mat Fac Fac Hostile Shots Fired 935 | . 35 87 121 233 459 Missed 271 | . 9 27 33 90 112 Damage Taken 11770 | . 292 1211 1390 3119 5758 Core 1346 | . 46 103 97 302 798 Absorbed by Shields . | . . . . . . Redirected to Shielding 11 | . 2 . 9 . . Core Remaining (%) 69 | 100 . 40 82 56 . Volleys Fired 397 | . 36 61 119 102 79 Largest 3 | . 2 2 3 3 3 Hottest 230 | . 100 119 180 138 230 Shots Fired 736 | . 71 95 247 189 134 Gun 275 | . 71 37 . 48 119 Cannon 423 | . . 52 247 117 7 Launcher 38 | . . 6 . 24 8 Special . | . . . . . . Kinetic 378 | . 7 40 144 99 88 Thermal 307 | . 64 54 103 66 20 Explosive 33 | . . 1 . 24 8 Electromagnetic 18 | . . . . . 18 Robot Hit Streak 19 | . 15 17 15 8 19 Robot Miss Streak 5 | . 3 5 4 5 4 Penetration Max 1 | . . . . . 1 Secondary Targets 3 | . 1 1 . . 1 Max Gunslinging Chain 1 | . 1 1 . . 1 Shots Hit Robots 500 | . 46 52 170 113 119 Core Hits 358 | . 22 28 126 103 79 Critical Kills 6 | . . . 3 3 . Critical Parts Destroyed 1 | . . . . . 1 Critical Strikes 18 | . 3 . 6 7 2 Burn 4 | . 3 . . . 1 Meltdown 5 | . . . 3 2 . Destroy 2 | . . . . 1 1 Blast 7 | . . . 3 4 . Melee Attacks 59 | . . 20 12 12 15 Impact . | . . . . . . Slashing 59 | . . 20 12 12 15 Piercing . | . . . . . . Sneak Attacks 2 | . . . . . 2 Combat Hostiles . | . . . . . . Follow-up Attacks . | . . . . . . Damage Inflicted 15953 | . 646 1445 3466 7346 3050 Guns 3350 | . 646 424 . 567 1713 Cannons 6315 | . . 543 3461 2149 162 Explosions 5836 | . . 478 . 4592 766 Melee 445 | . . . . 38 407 Ramming 7 | . . . 5 . 2 Kinetic 5765 | . 65 842 2042 1562 1254 Thermal 5443 | . 581 525 1419 2346 572 Explosive 4088 | . . 78 . 3400 610 Electromagnetic 205 | . . . . . 205 Impact . | . . . . . . Slashing 445 | . . . . 38 407 Piercing . | . . . . . . Highest Corruption 23 | . . . . 1 23 Average Corruption 4 | . . . . 1 8 Corruption Purged 10 | . . . . . 10 Corruption Blocked . | . . . . . . Effects 39 | . . . . 11 28 Message Errors 8 | . . . . 1 7 Matter Fused 8 | . . . . 4 4 Heat Flow Errors 4 | . . . . 2 2 Energy Discharges 5 | . . . . . 5 Parts Rejected 3 | . . . . . 3 Parts Fused 2 | . . . . . 2 Data Loss (minor) 7 | . . . . 3 4 Data Loss (major) 1 | . . . . 1 . Weapon Failures 1 | . . . . . 1 Overload Shots 1 | . . . 1 . . Overflow Damage 769 | . . . 12 665 92 Projectiles 93 | . . . 12 77 4 Explosions 601 | . . . . 588 13 Melee 75 | . . . . . 75 Knockbacks 72 | . . 1 64 7 . Impact . | . . . . . . Kinetic 63 | . . 1 56 6 . Secondary 9 | . . . 8 1 . Self-Inflicted Damage 990 | . . 91 . 672 227 Shots 22 | . . 3 . 14 5 Rammed 1 | . . . 1 . . Targets Rammed 2 | . . . 1 . 1 Kicked 1 | . . . . . 1 Crushed . | . . . . . . Highest Temperature 418 | . 241 16 274 418 287 Average Temperature 80 | . 90 10 73 78 81 Received Heat Transfer 1884 | . 150 102 738 507 387 Effects 2 | . 1 . . 1 . Shutdowns 1 | . . . . 1 . Energy Bleed 1 | . 1 . . . . Siege Activations . | . . . . . . Robots Corrupted 1 | . . . . . 1 Combat Hostiles 1 | . . . . . 1 Parts Fried . | . . . . . . Impact Corruptions 1 | . . . . 1 . Robots Melted 5 | . . . 3 2 . Combat Hostiles 5 | . . . 3 2 . Parts Melted 26 | . 6 1 11 5 3 Heat Transferred 8535 | . 1900 1062 2553 1948 1072 Parts Sabotaged . | . . . . . . Parts Stolen . | . . . . . . Parts Stripped . | . . . . . . Power Chain Reactions 1 | . . . . . 1 Alert | -11 -10 -10 -8 -7 -6 ------- Run | Yrd Mat Sub Mat Fac Fac Peak Influence 1155 | . 173 . 491 1155 614 Initial 555 | . . . 123 163 555 Average 347 | . 65 . 232 617 490 Maximum Alert Level 4 | . . . 2 4 2 Low Security (%) 42 | 100 100 . 48 26 . Level 1 21 | . . . 42 7 5 Level 2 25 | . . . 8 27 94 Level 3 8 | . . . . 32 . Level 4 1 | . . . . 5 . Level 5 . | . . . . . . High Security . | . . . . . . Max Security . | . . . . . . Squads Dispatched 25 | . 1 . 5 11 8 Investigation 1 | . . . 1 . . Extermination 7 | . . . . 5 2 Reinforcement 15 | . 1 . 4 5 5 Assault 2 | . . . . 1 1 Garrison . | . . . . . . Intercept . | . . . . . . Searches Triggered . | . . . . . . Construction Impeded 6 | . . . . 3 3 Haulers Reinforced . | . . . . . . Active Scanning Responses . | . . . . . . Cargo Convoy Interrupts 2 | . . . . 1 1 Stealth | -11 -10 -10 -8 -7 -6 --------- Run | Yrd Mat Sub Mat Fac Fac Distress Signals 7 | . . . 5 2 . Communications Jammed . | . . . . . . Distress Signals . | . . . . . . Times Spotted 197 | . 15 22 66 60 34 Peak Tracking Total 10 | . 4 3 7 10 10 Tactical Retreats 13 | . 1 3 5 2 2 Traps | -11 -10 -10 -8 -7 -6 ------- Run | Yrd Mat Sub Mat Fac Fac Traps Triggered 8 | . . 3 1 2 2 Indirectly . | . . . . . . Trap Hack Attempts . | . . . . . . Triggered . | . . . . . . Disarmed . | . . . . . . Reprogrammed . | . . . . . . Reused . | . . . . . . Traps Extracted . | . . . . . . Installed . | . . . . . . Triggered . | . . . . . . Machines | -11 -10 -10 -8 -7 -6 ---------- Run | Yrd Mat Sub Mat Fac Fac Machines Disabled 18 | . . 1 . 17 . Max in Single Turn 5 | . . 1 . 5 . Garrison Access 1 | . . . . 1 . Machines Repaired . | . . . . . . Machines Dismantled . | . . . . . . Machines Sabotaged . | . . . . . . Overloaded Fab Kills . | . . . . . . Hacking | -11 -10 -10 -8 -7 -6 --------- Run | Yrd Mat Sub Mat Fac Fac Machines Accessed 23 | . 5 1 11 6 . Terminals 18 | . 5 . 9 4 . Fabricators . | . . . . . . Repair Stations . | . . . . . . Recycling Units . | . . . . . . Scanalyzers 2 | . . . 2 . . Garrison Access 2 | . . . . 2 . Total Hacks 71 | . 22 9 30 10 . Successful 41 | . 12 9 14 6 . Failed 30 | . 10 . 16 4 . Catastrophic 4 | . 2 . . 2 . Database Lockouts . | . . . . . . Manual 27 | . 10 . 12 5 . Terminals 56 | . 22 . 26 8 . Fabricators . | . . . . . . Repair Stations . | . . . . . . Recycling Units . | . . . . . . Scanalyzers 4 | . . . 4 . . Garrison Access 2 | . . . . 2 . Terminal Hacks 28 | . 10 9 7 2 . Record 8 | . . 8 . . . Part Schematic 2 | . 2 . . . . Prototype ID Bank 1 | . . . 1 . . Branch Access Points 1 | . . . 1 . . Emergency Access Points 1 | . 1 . . . . Unreport Threat 2 | . . . 2 . . Locate Traps 5 | . 3 . 2 . . Hauler Manifests 1 | . 1 . . . . Registered Components 2 | . 1 . . 1 . Registered Prototypes 2 | . 1 . 1 . . Zone Layout 2 | . 1 . . 1 . Derelict Proto ID Bank 1 | . . 1 . . . Fabricator Hacks . | . . . . . . Repair Station Hacks . | . . . . . . Recycling Unit Hacks . | . . . . . . Scanalyzer 3 | . . . 3 . . Insert Component 3 | . . . 3 . . Garrison Access Hacks 1 | . . . . 1 . Seal Access 1 | . . . . 1 . Unauthorized Hacks 9 | . 2 . 4 3 . Terminals 9 | . 2 . 4 3 . Track 2 | . . . 2 . . Botnet 7 | . 2 . 2 3 . Fabricators . | . . . . . . Repair Stations . | . . . . . . Recycling Units . | . . . . . . Scanalyzers . | . . . . . . Garrison Access . | . . . . . . Data Cores Recovered . | . . . . . . Used . | . . . . . . Hacking Detections 19 | . 4 . 10 5 . Full Trace Events 1 | . 1 . . . . Feedback Events . | . . . . . . Feedback Blocked . | . . . . . . Robot Schematics Acquired . | . . . . . . Robots Built . | . . . . . . Authchips . | . . . . . . Time . | . . . . . . Total Robot Build Rating . | . . . . . . Part Schematics Acquired 2 | . 2 . . . . Parts Built . | . . . . . . Authchips . | . . . . . . Time . | . . . . . . Total Part Build Rating . | . . . . . . Parts Repaired . | . . . . . . Time . | . . . . . . Parts Recycled . | . . . . . . Recycled Matter . | . . . . . . Retrieved Matter . | . . . . . . Retrieved Components . | . . . . . . Parts Scanalyzed . | . . . . . . Part Schematics Acquired . | . . . . . . Parts Damaged . | . . . . . . Bothacking | -11 -10 -10 -8 -7 -6 ------------ Run | Yrd Mat Sub Mat Fac Fac Used RIF Installer . | . . . . . . Robots Hacked . | . . . . . . Non-combat . | . . . . . . Combat . | . . . . . . Robot Hacks Applied . | . . . . . . Relay Couplers Released 4 | . . . . 4 . Programmers 4 | . . . . 4 . Fabnet Peak Effective % . | . . . . . . Robots Rewired . | . . . . . . Allies Hacked . | . . . . . . Hacks Repelled . | . . . . . . Allies | -11 -10 -10 -8 -7 -6 -------- Run | Yrd Mat Sub Mat Fac Fac Total Allies 6 | . . . . 3 3 Largest Group 3 | . . . . 3 3 Highest-Rated Group 93 | . . . . 93 93 Highest-Rated Ally 31 | . . . . 31 31 Total Orders . | . . . . . . Ally Attacks 11 | . . . . 6 5 Total Damage 178 | . . . . 92 86 Kills 1 | . . . . . 1 Allies Corrupted . | . . . . . . Allies Melted . | . . . . . . Intel | -11 -10 -10 -8 -7 -6 ------- Run | Yrd Mat Sub Mat Fac Fac Robot Analysis Total . | . . . . . . Derelict Logs Recovered 1 | . . 1 . . . Drone Launches . | . . . . . . Drone Recoveries . | . . . . . . Exploration | -11 -10 -10 -8 -7 -6 ------------- Run | Yrd Mat Sub Mat Fac Fac Turns Passed 12668 | 73 1098 4843 3398 2068 1188 Spaces Moved 6156 | 40 508 2240 1832 1020 516 Core 5 | 4 . . . . 1 Treads 3317 | 36 219 1679 1383 . . Legs 1973 | . . . 449 1020 504 Wheels 861 | . 289 561 . . 11 Hover . | . . . . . . Flight . | . . . . . . Fastest Speed 50 | 50 115 130 130 130 100 Average Speed 151 | 149 134 156 152 141 157 Slowest Speed 500 | 160 160 240 250 250 500 Overloaded Moves . | . . . . . . Propulsion Burnouts . | . . . . . . Robots Hopped . | . . . . . . Cave-ins Triggered . | . . . . . . Exploration Rate (%) 52 | 5 83 97 89 30 11 Regions Visited 5 Branch Regions 1 Pre-discovered Areas 1 | . . 1 . . . Known Exits Taken . | . . . . . . Unknown Exits Taken 5 | 1 1 1 1 1 . Scrap Searched 11 | . . 11 . . . Spaces Dug 73 | . . 25 13 29 6 Terrain Destroyed 430 | . . 77 17 251 85 Melee 33 | . . 5 12 10 6 Projectile 19 | . . 1 5 13 . AOE 378 | . . 71 . 228 79 Terrain Rammed . | . . . . . . Walls Destroyed . | . . . . . . Machines Disabled . | . . . . . . Actions | -11 -10 -10 -8 -7 -6 --------- Run | Yrd Mat Sub Mat Fac Fac Total 8744 | 51 849 3441 2202 1477 724 Wait 1802 | . 284 1044 149 276 49 Move 6151 | 39 507 2239 1831 1019 516 Hop . | . . . . . . Pick Up 78 | 6 10 15 21 14 12 Fast Attach 42 | 6 1 1 10 1 23 Attach 45 | . 1 7 7 15 15 Detach 10 | . . . 2 7 1 Swap 80 | . 8 20 22 20 10 Drop 69 | . 2 25 28 11 3 Fire 397 | . 36 61 119 102 79 Melee 59 | . . 20 12 12 15 Ram . | . . . . . . Kick 1 | . . . . . 1 Crush 1 | . . . 1 . . Escape Stasis . | . . . . . . Rewire . | . . . . . . Trap . | . . . . . . Miscellaneous 9 | . . 9 . . . Route ------- -11/Scrapyard -10/Materials (discovered 6 exits: [*Mat x3] / [*Min x2] / *Sub) -10/Subcaves (discovered 2 exits: *Mat x2) -8/Materials (discovered 2 exits: *Fac x2) -7/Factory -6/Factory (discovered 2 exits: [*Low x2]) History --------- Turn | Location | Event 13 | -11/Scrapyard | Discovered new exit (range 15) 74 | -11/Scrapyard | Entered Materials 182 | -10/Materials | Discovered new exit (range 13) 307 | -10/Materials | Build established: Mutant 559 | -10/Materials | Discovered new exit (range 16) 663 | -10/Materials | Discovered new exit (range 12) 768 | -10/Materials | Discovered new exit (range 14) 954 | -10/Materials | Discovered new exit (range 5) 1149 | -10/Materials | Discovered new exit (range 5) 1172 | -10/Materials | Entered Subcaves 1177 | -10/Subcaves | Ambushed by Subdwellers from Twisted Machinery 1223 | -10/Subcaves | Lost 4 parts (1n1u2w) 1758 | -10/Subcaves | Learned Materials emergency access door positions 2095 | -10/Subcaves | Disturbed a concealed Subdweller 2595 | -10/Subcaves | Discovered new exit (range 13) 2840 | -10/Subcaves | Learned location of Zion (-6) 2840 | -10/Subcaves | Met a Zionite searching for "candidates" 3399 | -10/Subcaves | Core integrity fell below 50% 5322 | -10/Subcaves | Discovered new exit (range 8) 5577 | -10/Subcaves | Visited 4L-MR0's lab 5597 | -10/Subcaves | Found Powered Cannon 6015 | -10/Subcaves | Entered Materials 6015 | -8/Materials | Evolved 4 slots: Propulsion x1, Utility x2, Weapon x1 6357 | -8/Materials | Lost 3 parts (1p1u1w) 6658 | -8/Materials | Build established: Scavenger-Mutant 6799 | -8/Materials | Discovered new exit (range 4) 6970 | -8/Materials | Build established: Scavenger-Tank 8055 | -8/Materials | Discovered new exit (range 15) 8574 | -8/Materials | Destroyed 9 combat bots 9249 | -8/Materials | Build established: Mutant 9314 | -8/Materials | Attached Powered Cannon, gained temporary slot: Power 9413 | -8/Materials | Entered Factory 9413 | -7/Factory | Evolved 2 slots: Propulsion x1, Utility x1 10099 | -7/Factory | Cargo convoy interrupted 10155 | -7/Factory | Destroyed 8 combat bots 10691 | -7/Factory | Allied Derelicts emerged from ambush trap array 10757 | -7/Factory | Lost 3 allies 11413 | -7/Factory | First assault squad dispatched 11474 | -7/Factory | Discovered new exit (range 5) 11481 | -7/Factory | Entered another Factory area 11481 | -6/Factory | Evolved 2 slots: Power x1, Utility x1 11569 | -6/Factory | Discovered new exit (range 19) 11585 | -6/Factory | Discovered new exit (range 19) 11914 | -6/Factory | Lost 5 parts (1p1n2u1w) 11958 | -6/Factory | Allied Derelicts emerged from ambush trap array 12047 | -6/Factory | Lost 8 parts (2p1n2u3w) 12150 | -6/Factory | Cargo convoy interrupted 12215 | -6/Factory | System corruption reached 10% 12223 | -6/Factory | Core integrity fell below 50% 12285 | -6/Factory | Lost 16 parts (3p2n4u7w) 12307 | -6/Factory | Core integrity fell below 20% 12531 | -6/Factory | First assault squad dispatched 12669 | -6/Factory | Self-destructed Last Messages --------------- 12594_ System corrupted: Matter fused (-7). 12614_ System corrupted: Component data lost. 12635_ System corrupted: Energy discharge (-40). 12637_ Identified Lightning Gun. 12638_ Identified Coil Gun. 12644_ System Restoration Module purges 1% system corruption (16%). 12645_ System Restoration Module purges 1% system corruption (15%). 12653_ OC:KAPY4AGHDRZJBRR7ZENGMM>SU 12665_ System Restoration Module purges 1% system corruption (14%). 12665_ System Restoration Module expended. 12666_ Discarded Imp. Arc Projector. 12667_ System Restoration Module purges 1% system corruption (13%). 12667_ System Restoration Module expended. 12668_ System corrupted: Component data lost. 12668_ C-30 ARC bursts open, deploying its payload. 12668_ G-67 Veteran unfolds itself. 12668_ G-50 Soldier unfolds itself. 12668_ L-41 Fighter unfolds itself. 12668_ G-50 Soldier unfolds itself. 12668_ I-36 Angel unfolds itself. Map ----- +----------------------------------------------------+ | ??#####+##### #?# """ #??????????????????? | | #????# #?# #??????????????????? | | ###### T #?# """ #??????????????????? | | + #?# """ #??????????????????? | | ######## #### #?# """ #??????????????????? | | #???????+#??######### ^ #??????????????????? | | #?????????????????? # """ #??????????????????? | | #???????????????????+ """ #??????????????????? | | #?????????????????? # """ #??????????????????? | | #????????????????? ?#^ #??????????????????? | | #???????????????????# #??????????????????? | | #???????????????????# ^ #??????????????????? | | #???????????????????# #??????????????????? | | #???????????????????# [ #??????????????????? | | ##################### ##?????????????????? | | [ # " " "??????????? | | + " " "??????????? | | # " " "??????????? | | ######################+##### #????" "??????????? | | ??????????????# # #?????????????????? | | ?#??#?????????# # #?????????????????? | | ??????????????# """""" # #?????????????????? | | ??????????????# g """""" # #?????????????????? | | ???#??????????# l"""""" # #?????????????????? | | ??#??#????????# g"""""" # #?????????????????? | | ??????#???????# ! g @ # #?????????????????? | | ?#????????#???# i"""""" # #?????????????????? | | ??????????#???# """""" # #??#??????????????? | | ???#?##???????# """""" # #?????????????????? | | ??????????????# """""" # ?????????????????? | | #??????????#??# # ?????????????????? | | ????????##????##############? ???????????????????? | | ??????#??#?#????????#????????????#???? ??????????? | | ??????????#???###???###############??????????????? | | ##??????#######"##### #??????"???????? | | ?????#?## # #??????????????? | | ???#????# """ """ # #??????????????? | | ?#????#?# """ """ # #??????????????? | | ?#?#????# """ """ # """" """" [#??"???????????? | | #?##??#?# # """" """" # ?????????????? | | ?#???#??# """ """ # """" """" #??????????????? | | ????#???# """ """ # """" """" #??????????????? | | ??##????# """ """ # +????????? ????? | | ??#????## # #?????? ???????? | | ?#?#???## """ """ ##+############??? ? ??????#?? | | #????#?## """ """ # * #?? ????????????? | | ##?????## """ """ # #???????????????? | | #???????# # """"""""" #???????????????? | | ?#?#?#?#########+##+# #??????????? ???? | | ######## # """"""""" #?????"?????????? | +----------------------------------------------------+ Best States ------------- Heat Dissipation 64 Energy Generation 31 Energy Capacity 315 Matter Stores 300 Matter Capacity 300 Sight Range 20 Terrain Scan Range 20 Terrain Scan Density 210 Armor Coverage 1050 Resistance: KI 10 Resistance: EM 25 Core Shielding 20 Propulsion Shielding 33 Phase Shifting 5 Evasion (%) 55 Targeting Accuracy 6 Recoil Reduction 3 Particle Charging 15 Item Schematics ----------------- Lrg. Storage Unit | -10/Materials | Hacked Med. Storage Unit | -10/Materials | Hacked Robot Schematics ------------------ None Fabricated ------------ Nothing Alien Tech Used ----------------- None Achievements -------------- None Challenges ------------ None Game ------ Seed SigixDroneSpoofer Manual? 0 Play Time 02:01:48 Cumulative 138.4 hours Start 2024.05.12 @ 00:42:47 End 2024.05.12 @ 19:16:06 Sessions 5 Manual Loads 0 Difficulty Rogue Special Mode None Game No. 88 Rogue 88 Adventurer 0 Explorer 0 Win Type - Total 4 Types 4/0/0/0/0/0/0/0/0 Lore% 46 Gallery% 55 Achievement% 39 Wizard Run 0 Options --------- Layout 0 ASCII 0 Keyboard 0 Movement Numpad Keybinds 0 Fullscreen 1 Font 24/X11 Map View 76x50 Zoom Use 0% Tactical HUD 1 Map Filters NONE Filters NONE Steam 1 RUN: 25923613-6b51-4383-a7d7-e19cfc6ca33c